bitfinex/quotes_SOLUSD_20241031
["timestamp","ask_amount","ask_price","bid_price","bid_amount"]
[1730369552045,15.8367754,175.28,175.23,30.1047754]
[1730369554348,15.8797,175.3,175.2,16.02640064]
[1730369554349,10.1315754,175.25,175.2,16.02640064]
[1730369554554,10.1315754,175.22,175.2,5.89482524]
[1730369555350,10.1315754,175.23,175.2,5.89482524]
[1730369555743,10.1315754,175.23,175.18,15.8396754]
[1730369555941,10.1315754,175.23,175.18,21.73453404]
[1730369556460,5.7067,175.23,175.19,10.1315754]
[1730369566046,15.8373754,175.26,175.21,10.1315754]
[1730369566550,5.7058,175.26,175.22,10.1315754]
[1730369567067,15.8369754,175.28,175.23,15.8382754]
[1730369569666,10.1315754,175.27,175.23,5.7067]
[1730369570169,15.8370754,175.27,175.23,5.7067]
[1730369571466,10.1315754,175.25,175.19,24.4015754]
[1730369571652,10.1315754,175.23,175.19,19.978]
[1730369572554,10.1315754,175.24,175.19,30.1095754]
[1730369573063,15.8381754,175.24,175.19,30.1095754]
[1730369575369,10.1315754,175.23,175.19,19.978]
[1730369575673,10.1315754,175.24,175.19,30.1095754]
[1730369577876,5.7067,175.23,175.19,30.1095754]
[1730369578667,5.7067,175.23,175.18,5.89423862]
[1730369578668,10.1315754,175.22,175.18,5.89423862]
[1730369579671,15.8387754,175.22,175.18,5.89423862]
[1730369583168,5.7072,175.22,175.18,16.02581402]
[1730369583985,5.7072,175.22,175.19,10.1315754]
[1730369585273,5.7072,175.22,175.18,5.89423862]
[1730369585274,15.8387754,175.22,175.18,5.89423862]
[1730369585656,10.1315754,175.2,175.15,15.8408754]
[1730369585854,10.1315754,175.18,175.13,15.8413754]
[1730369586084,10.1315754,175.18,175.14,5.94343258]
[1730369587369,10.1315754,175.18,175.14,11.65293258]
[1730369587681,15.8397754,175.19,175.14,21.78450798]
[1730369590562,5.7082,175.19,175.15,10.1315754]
[1730369591079,5.7082,175.19,175.16,10.1315754]
[1730369591379,5.7082,175.19,175.15,10.1315754]
[1730369592776,5.7082,175.19,175.15,15.8408754]
[1730369593691,5.7082,175.19,175.16,10.1315754]
[1730369594088,10.2570654,175.21,175.16,10.1315754]
[1730369594382,5.7077,175.2,175.16,10.1315754]
[1730369595879,5.7077,175.2,175.15,10.1315754]
[1730369596268,15.8392754,175.2,175.15,10.1315754]
[1730369597582,15.8392754,175.2,175.14,5.7093]
[1730369597583,10.1315754,175.18,175.14,15.8408754]
[1730369598693,10.1315754,175.18,175.14,5.7093]
[1730369599191,5.7077,175.2,175.16,10.1315754]
[1730369602093,10.1315754,175.19,175.14,24.4057754]
[1730369603079,15.8396754,175.19,175.14,30.1154754]
[1730369604400,10.1315754,175.17,175.13,5.7099]
[1730369604696,10.1315754,175.17,175.12,16.92983161]
[1730369604995,5.7081,175.19,175.12,12.50855621]
[1730369604996,10.1315754,175.16,175.12,12.50855621]
[1730369605295,10.1315754,175.16,175.12,11.6522272]
[1730369605495,10.1315754,175.16,175.12,5.9419272]
[1730369605686,10.1315754,175.16,175.12,11.6522272]
[1730369605998,10.1315754,175.16,175.12,12.49060518]
[1730369606301,10.1315754,175.17,175.12,22.62218058]
[1730369606798,10.1315754,175.18,175.13,10.1315754]
[1730369607001,10.1315754,175.19,175.14,10.1315754]
[1730369607293,15.8392754,175.2,175.15,10.1315754]
[1730369609393,15.8386754,175.22,175.17,10.1315754]
[1730369609582,10.1315754,175.21,175.16,30.1131754]
[1730369610583,15.8392754,175.21,175.16,30.1131754]
[1730369611702,10.1315754,175.2,175.15,10.1315754]
[1730369611876,10.1315754,175.18,175.14,6.70170948]
[1730369615081,10.1315754,175.18,175.14,0.99220948]
[1730369615298,10.1315754,175.17,175.14,0.99220948]
[1730369615780,10.1315754,175.18,175.14,0.99220948]
[1730369617093,5.7087,175.17,175.14,0.99220948]
[1730369619180,10.1315754,175.2,175.15,10.1315754]
[1730369619388,10.1315754,175.16,175.14,0.99220948]
[1730369619698,10.2570654,175.15,175.12,0.83837798]
[1730369619905,10.1315754,175.14,175.12,0.83837798]
[1730369621178,15.8413754,175.14,175.12,0.83837798]
[1730369626999,5.7098,175.14,175.12,0.83837798]
[1730369627208,15.8413754,175.14,175.12,0.83837798]
[1730369630808,10.1315754,175.13,175.12,0.83837798]
[1730369631182,15.8413754,175.14,175.12,0.83837798]
[1730369634708,15.9670654,175.13,175.12,0.83837798]
[1730369635008,5.71,175.13,175.12,0.83837798]
[1730369635887,15.9670654,175.13,175.12,0.83837798]
[1730369636088,0.12549,175.12,175.08,0.99247466]
[1730369636291,10.1315754,175.1,175.08,0.99247466]
[1730369636891,10.1315754,175.1,175.07,5.7117]
[1730369638197,10.1315754,175.1,175.06,5.7123]
[1730369639302,10.1315754,175.1,175.05,20.23563626]
[1730369639504,15.8427754,175.1,175.05,26.80472045]
[1730369639701,10.1315754,175.09,175.05,26.80472045]
[1730369640095,10.1315754,175.09,175.05,20.85018419]
[1730369641710,10.1315754,175.1,175.05,21.8428916]
[1730369642714,15.8426754,175.1,175.05,21.8428916]
[1730369644595,10.1315754,175.09,175.05,21.8428916]
[1730369645993,15.8427754,175.1,175.06,10.1315754]
[1730369648520,15.8427754,175.1,175.06,5.7123]
[1730369650596,10.1315754,175.18,175.1,23.902374]
[1730369650929,5.708,175.19,175.14,10.1315754]
[1730369650930,15.8395754,175.19,175.14,10.1315754]
[1730369651801,15.9128,175.2,175.1,23.902374]
[1730369651802,15.8400754,175.18,175.13,10.1315754]
[1730369653208,15.8400754,175.18,175.14,10.1315754]
[1730369653598,0.12549,175.19,175.15,10.1315754]
[1730369653800,26.0443754,175.2,175.15,10.1315754]
[1730369653998,10.1315754,175.2,175.16,10.1315754]
[1730369654223,15.8392754,175.2,175.16,10.1315754]
[1730369654994,10.1315754,175.17,175.13,24.4066754]
[1730369655193,10.1315754,175.17,175.13,14.2751]
[1730369655399,15.8403754,175.17,175.13,14.2751]
[1730369656125,15.8403754,175.17,175.11,10.1315754]
[1730369656126,10.1315754,175.16,175.11,10.1315754]
[1730369657117,10.1315754,175.16,175.12,10.1315754]
[1730369657326,15.8403754,175.17,175.12,10.1315754]
[1730369657534,15.8403754,175.17,175.12,15.8418754]
[1730369658843,10.1315754,175.16,175.11,15.8421754]
[1730369659024,10.1315754,175.16,175.12,10.1315754]
[1730369662240,15.8406754,175.16,175.12,10.1315754]
[1730369663143,15.8402754,175.17,175.12,10.1315754]
[1730369664442,15.8402754,175.17,175.12,15.8418754]
[1730369665820,10.1315754,175.16,175.11,15.8421754]
[1730369666034,15.8402754,175.17,175.12,10.1315754]
[1730369667734,15.8402754,175.17,175.13,10.1315754]
[1730369668538,5.7087,175.17,175.13,10.1315754]
[1730369672115,15.8402754,175.17,175.13,10.1315754]
[1730369672447,15.8402754,175.17,175.11,5.7105]
[1730369672448,10.2570654,175.16,175.11,10.1315754]
[1730369673738,5.7093,175.15,175.12,10.1315754]
[1730369678138,10.1315754,175.16,175.12,10.1315754]
[1730369678324,10.1315754,175.17,175.12,15.8417754]
[1730369678530,10.1315754,175.17,175.13,10.1315754]
[1730369678531,5.709,175.17,175.13,10.1315754]
[1730369679442,5.709,175.17,175.13,15.8415754]
[1730369679649,0.12549,175.16,175.13,15.8415754]
[1730369679820,0.12549,175.16,175.12,30.1177754]
[1730369680442,10.2570654,175.16,175.12,19.9862]
[1730369681017,15.9661654,175.16,175.12,19.9862]
[1730369687954,15.9661654,175.16,175.12,10.1315754]
[1730369688548,10.2570654,175.16,175.12,10.1315754]
[1730369689830,10.2570654,175.16,175.12,15.8416754]
[1730369691145,0.12549,175.16,175.12,15.8416754]
[1730369694727,10.1315754,175.18,175.12,15.8416754]
[1730369694934,0.12549,175.17,175.13,10.1315754]
[1730369695738,10.1315754,175.18,175.13,10.1315754]
[1730369695936,10.1315754,175.19,175.14,10.1315754]
[1730369697656,15.8396754,175.19,175.14,15.8409754]
[1730369698649,10.1315754,175.18,175.14,15.8409754]
[1730369698856,10.1315754,175.18,175.14,5.7094]
[1730369699236,10.1315754,175.18,175.14,19.9836]
[1730369700847,15.8399754,175.18,175.14,19.9836]
[1730369701054,15.8399754,175.18,175.13,10.1315754]
[1730369701055,10.1315754,175.15,175.11,14.2762]
[1730369702346,10.1315754,175.15,175.11,19.9868]
[1730369703159,10.1315754,175.15,175.11,30.1183754]
[1730369703568,15.8405754,175.16,175.11,30.1183754]
[1730369703753,5.709,175.16,175.12,15.8417754]
[1730369705569,15.8405754,175.16,175.11,30.1183754]
[1730369713502,15.8405754,175.16,175.11,10.1315754]
[1730369713769,15.8405754,175.16,175.11,15.8421754]
[1730369718476,0.12549,175.15,175.11,10.1315754]
[1730369718776,10.1315754,175.12,175.09,6.9436404]
[1730369719076,10.2570654,175.1,175.09,0.9923676]
[1730369719274,10.2570654,175.1,175.06,5.9526305]
[1730369719582,10.1315754,175.09,175.05,6.56898419]
[1730369723263,15.9681654,175.1,175.06,10.1315754]
[1730369724576,15.9681654,175.1,175.06,15.8438754]
[1730369726283,5.7106,175.12,175.08,10.1315754]
[1730369726460,10.1315754,175.13,175.08,10.1315754]
[1730369726783,0.12549,175.13,175.09,10.1315754]
[1730369727862,0.12549,175.13,175.09,15.8427754]
[1730369729506,10.1315754,175.14,175.09,15.8427754]
[1730369729777,10.1315754,175.14,175.09,30.1210754]
[1730369729982,10.1315754,175.15,175.1,10.1315754]
[1730369730962,10.1315754,175.15,175.11,5.7106]
[1730369731374,10.1315754,175.15,175.11,19.9873]
[1730369732075,5.7093,175.16,175.11,30.1188754]
[1730369732076,15.8408754,175.16,175.11,30.1188754]
[1730369732787,15.8408754,175.16,175.1,10.1315754]
[1730369732788,10.1315754,175.15,175.1,10.1315754]
[1730369734288,10.1315754,175.15,175.11,5.7106]
[1730369736090,10.1315754,175.15,175.11,19.9873]
[1730369736392,10.2570654,175.16,175.11,30.1188754]
[1730369737593,15.9661654,175.16,175.11,30.1188754]
[1730369738591,10.1315754,175.16,175.12,10.1315754]
[1730369738901,10.1315754,175.17,175.13,10.1315754]
[1730369739577,10.1315754,175.17,175.13,15.8415754]
[1730369740491,10.1315754,175.18,175.13,30.1166754]
[1730369741677,10.1315754,175.19,175.14,10.1315754]
[1730369741881,5.7064,175.24,175.16,10.1315754]
[1730369742077,10.1315754,175.22,175.17,10.1315754]
[1730369743293,10.1315754,175.22,175.17,15.8399754]
[1730369744665,10.1315754,175.21,175.17,5.7084]
[1730369745064,10.1315754,175.18,175.16,14.272]
[1730369745281,10.1315754,175.18,175.13,38.6817754]
[1730369745282,15.8399754,175.18,175.14,20.0]
[1730369745489,10.1315754,175.17,175.13,19.9848]
[1730369747093,10.1315754,175.18,175.13,30.1163754]
[1730369747675,10.1315754,175.17,175.13,19.9848]
[1730369751577,5.7081,175.19,175.13,19.9848]
[1730369751578,10.1315754,175.18,175.13,30.1163754]
[1730369752184,15.8396754,175.19,175.14,10.1315754]
[1730369752386,10.1315754,175.2,175.15,10.1315754]
[1730369752598,15.8392754,175.2,175.15,10.1315754]
[1730369753076,15.8392754,175.2,175.16,5.709]
[1730369753691,10.1315754,175.21,175.16,15.8405754]
[1730369754488,10.1315754,175.21,175.16,30.1131754]
[1730369754693,5.83189,175.24,175.16,19.9816]
[1730369754694,10.1315754,175.19,175.16,19.9816]
[1730369755201,40.5263016,175.23,175.13,19.9847]
[1730369755202,10.1315754,175.17,175.13,19.9847]
[1730369755505,10.1315754,175.18,175.13,30.1162754]
[1730369757798,10.1315754,175.17,175.13,30.1162754]
[1730369760313,10.1315754,175.18,175.13,30.1162754]
[1730369764021,10.1315754,175.17,175.13,14.2747]
[1730369764303,5.7081,175.19,175.11,19.9873]
[1730369764304,10.1315754,175.15,175.11,19.9873]
[1730369765905,15.8409754,175.15,175.1,22.63169926]
[1730369766090,10.1315754,175.12,175.1,6.78942386]
[1730369766308,10.1315754,175.11,175.1,0.85633256]
[1730369772710,15.8421754,175.11,175.1,0.85633256]
[1730369780112,15.9676654,175.11,175.1,0.85633256]
[1730369780296,35.9676654,175.11,175.1,0.85633256]
[1730369782503,35.8421754,175.11,175.1,0.85633256]
[1730369782709,15.8421754,175.11,175.1,0.85633256]
[1730369784012,20.12549,175.1,175.04,5.7127]
[1730369784213,10.1315754,175.07,175.04,5.7127]
[1730369784525,10.1315754,175.07,175.03,14.2831]
[1730369784706,10.1315754,175.07,175.03,19.9963]
[1730369785108,10.1315754,175.06,175.03,19.9963]
[1730369786326,10.1315754,175.06,175.03,20.85302887]
[1730369788507,10.1315754,175.05,175.03,0.85672887]
[1730369791624,10.1315754,175.04,175.03,0.85672887]
[1730369794812,15.8444754,175.04,175.03,0.85672887]
[1730369797223,35.9699654,175.04,175.03,0.85672887]
[1730369798536,59.7468494,175.04,175.03,0.85672887]
[1730369803505,59.912164,175.03,175.0,0.1599209]
[1730369803818,54.0339494,175.01,175.0,0.1599209]
[1730369805603,59.7478494,175.01,175.0,0.1599209]
[1730369806208,59.9733394,175.01,175.0,0.1599209]
[1730369807107,59.7478494,175.01,175.0,0.1599209]
[1730369807515,15.9709654,175.01,175.0,0.1599209]
[1730369807740,39.7478494,175.01,175.0,0.1599209]
[1730369809043,59.7478494,175.01,175.0,0.1599209]
[1730369813941,35.9709654,175.01,175.0,0.1599209]
[1730369815224,59.9733394,175.01,175.0,0.1599209]
[1730369816047,59.8733394,175.01,175.0,0.1599209]
[1730369816341,59.7478494,175.01,175.0,0.1599209]
[1730369822048,35.9709654,175.01,175.0,0.1599209]
[1730369822436,30.1315754,175.01,175.0,0.1599209]
[1730369822622,30.2570654,175.01,175.0,0.1599209]
[1730369822955,35.9709654,175.01,175.0,0.1599209]
[1730369823240,10.2570654,175.01,175.0,0.1599209]
[1730369825534,0.12549,175.01,175.0,0.1599209]
[1730369825728,10.2570654,175.01,175.0,0.1599209]
[1730369826455,15.9709654,175.01,175.0,0.1599209]
[1730369830539,10.2570654,175.01,175.0,0.1599209]
[1730369830844,10.1315754,175.02,175.0,0.1599209]
[1730369831349,5.712,175.07,175.0,0.1599209]
[1730369831350,10.1315754,175.01,175.0,0.1599209]
[1730369841731,35.9709654,175.01,175.0,0.1599209]
[1730369842061,59.7478494,175.01,175.0,0.1599209]
[1730369844756,59.7478494,175.01,175.0,80.1599209]
[1730369845939,59.8733394,175.01,175.0,80.1599209]
[1730369847269,15.9709654,175.01,175.0,80.1599209]
[1730369848653,35.9709654,175.01,175.0,80.1599209]
[1730369851458,15.9709654,175.01,175.0,80.1599209]
[1730369855072,10.1315754,175.01,175.0,80.1599209]
[1730369856462,15.8454754,175.01,175.0,80.1599209]
[1730369856964,15.9709654,175.01,175.0,80.1599209]
[1730369859449,35.9709654,175.01,175.0,80.1599209]
[1730369866051,5.83939,175.01,175.0,80.1599209]
[1730369867177,15.9709654,175.01,175.0,80.1599209]
[1730369867959,0.12549,175.01,175.0,80.1599209]
[1730369868181,10.2570654,175.01,175.0,80.1599209]
[1730369868755,15.9709654,175.01,175.0,80.1599209]
[1730369869495,35.9709654,175.01,175.0,80.1599209]
[1730369875172,59.8733394,175.01,175.0,80.1599209]
[1730369876457,35.9709654,175.01,175.0,80.1599209]
[1730369881590,59.8733394,175.01,175.0,80.1599209]
[1730369895103,60.0733394,175.01,175.0,8.10963243]
[1730369895283,60.0733394,175.01,175.0,2.74443243]
[1730369895483,75.5026394,175.01,175.0,3.243e-05]
[1730369896202,82.85386597,175.01,175.0,3.243e-05]
[1730369896803,82.85386597,175.01,174.87,20.0144]
[1730369896804,0.12549,174.93,174.87,52.62622568]
[1730369897101,10.1315754,174.91,174.87,46.7114754]
[1730369897397,10.2570654,174.91,174.87,22.2837]
[1730369898200,10.2570654,174.91,174.87,32.4152754]
[1730369898396,5.7175,174.9,174.87,32.4152754]
[1730369899003,0.12549,174.91,174.87,32.4152754]
[1730369899004,5.84269,174.91,174.88,10.1315754]
[1730369899309,5.84269,174.91,174.87,32.4152754]
[1730369900610,5.84269,174.91,174.88,10.1315754]
[1730369901701,5.84269,174.91,174.87,32.4152754]
[1730369902007,15.9742654,174.91,174.87,32.4152754]
[1730369902508,0.12549,174.89,174.87,22.2837]
[1730369902675,10.2570654,174.89,174.85,10.1315754]
[1730369903288,10.1315754,174.87,174.84,0.99040787]
[1730369903500,10.1315754,174.87,174.83,31.6135754]
[1730369904508,15.9760654,174.86,174.83,21.482]
[1730369904691,5.84449,174.86,174.83,21.482]
[1730369905283,5.84449,174.86,174.83,31.6135754]
[1730369905482,20.0,174.89,174.85,10.1315754]
[1730369905706,20.0,174.91,174.87,10.1315754]
[1730369905913,0.12549,174.9,174.87,10.1315754]
[1730369906414,0.12549,174.9,174.86,10.1315754]
[1730369906916,5.84309,174.9,174.86,10.1315754]
[1730369911302,15.9746654,174.9,174.85,15.8506754]
[1730369911699,0.12549,174.9,174.86,10.1315754]
[1730369911914,0.12549,174.9,174.84,20.0182]
[1730369911915,10.1315754,174.94,174.89,10.1315754]
[1730369912210,15.8477754,174.95,174.9,10.1315754]
[1730369912419,15.8471754,174.96,174.91,10.1315754]
[1730369912600,5.7156,174.96,174.92,10.1315754]
[1730369912996,5.7156,174.96,174.89,21.1555]
[1730369912997,10.2570654,174.95,174.91,10.1315754]
[1730369913196,10.1315754,174.95,174.91,10.1315754]
[1730369913400,10.2570654,174.93,174.89,21.1555]
[1730369913798,10.2570654,174.93,174.84,48.6157]
[1730369913799,10.2570654,174.91,174.86,10.1315754]
[1730369914215,0.12549,174.89,174.85,31.9124754]
[1730369915214,5.84319,174.9,174.86,10.1315754]
[1730369916597,5.84319,174.9,174.87,10.1315754]
[1730369916793,5.84319,174.9,174.88,10.1315754]
[1730369917016,5.717,174.92,174.88,15.8497754]
[1730369917225,5.717,174.92,174.89,10.1315754]
[1730369917403,14.2885,174.97,174.88,5.7182]
[1730369917404,10.1315754,174.97,174.91,10.1315754]
[1730369917715,10.1315754,174.97,174.92,10.1315754]
[1730369918219,0.12549,174.96,174.92,10.1315754]
[1730369918514,10.1315754,174.95,174.91,10.1315754]
[1730369918714,0.12549,174.94,174.9,10.1315754]
[1730369919118,5.84199,174.94,174.9,10.1315754]
[1730369919895,0.12549,174.92,174.88,10.1315754]
[1730369922317,5.84239,174.92,174.88,10.1315754]
[1730369922519,15.9739654,174.92,174.87,10.1315754]
[1730369922814,10.2570654,174.9,174.85,31.9124754]
[1730369923638,0.12549,174.88,174.85,10.1315754]
[1730369923791,0.12549,174.88,174.84,10.1315754]
[1730369924212,0.12549,174.88,174.82,6.3034703]
[1730369924213,10.2570654,174.88,174.83,10.1315754]
[1730369924412,5.7185,174.87,174.83,10.1315754]
[1730369925198,0.12549,174.85,174.82,0.5833703]
[1730369926328,0.12549,174.85,174.82,10.7149457]
[1730369927111,5.84469,174.85,174.82,10.7149457]
[1730369927624,5.84469,174.85,174.82,0.5833703]
[1730369927808,15.9762654,174.85,174.82,0.5833703]
[1730369929217,0.12549,174.83,174.82,0.5833703]
[1730369930323,0.12549,174.84,174.82,0.5833703]
[1730369931405,5.84529,174.84,174.82,0.5833703]
[1730369936127,5.7192,174.85,174.82,0.5833703]
[1730369936504,0.12549,174.84,174.82,0.5833703]
[1730369936907,0.12549,174.84,174.82,10.7149457]
[1730369939026,0.12549,174.85,174.82,10.7149457]
[1730369939232,5.84469,174.85,174.82,0.5833703]
[1730369941629,5.84469,174.85,174.82,10.7149457]
[1730369943741,10.1315754,174.9,174.84,10.1315754]
[1730369943905,10.1315754,174.91,174.82,42.2480703]
[1730369944103,10.1315754,174.9,174.85,10.1315754]
[1730369944508,6.2209,174.94,174.82,42.2480703]
[1730369944509,0.12549,174.89,174.86,10.1315754]
[1730369944933,5.7177,174.9,174.86,10.1315754]
[1730369945111,10.1315754,174.92,174.87,10.1315754]
[1730369945308,15.8480754,174.93,174.88,10.1315754]
[1730369946337,0.12549,174.92,174.88,10.1315754]
[1730369946640,20.12549,174.92,174.88,10.1315754]
[1730369947144,15.549,174.96,174.91,10.1315754]
[1730369947145,10.1315754,174.96,174.91,10.1315754]
[1730369947313,10.1315754,174.97,174.92,10.1315754]
[1730369947514,10.1315754,174.98,174.93,10.1315754]
[1730369948037,0.12549,174.97,174.93,10.1315754]
[1730369948335,10.1315754,174.98,174.93,10.1315754]
[1730369948529,0.12549,174.96,174.93,10.1315754]
[1730369949850,20.12549,174.97,174.94,10.1315754]
[1730369950140,30.2570654,174.97,174.92,10.1315754]
[1730369950637,0.12549,174.95,174.92,10.1315754]
[1730369952129,0.12549,174.94,174.9,10.1315754]
[1730369952328,10.2570654,174.94,174.9,10.1315754]
[1730369952541,0.12549,174.94,174.9,10.1315754]
[1730369954236,15.9734654,174.94,174.89,10.1315754]
[1730369954428,15.9734654,174.94,174.9,10.1315754]
[1730369954640,15.9734654,174.94,174.89,10.1315754]
[1730369954939,0.12549,174.92,174.88,10.1315754]
[1730369955235,30.2570654,174.92,174.87,10.1315754]
[1730369956620,35.9740654,174.92,174.87,15.8499754]
[1730369956822,35.9740654,174.92,174.87,10.1315754]
[1730369957038,0.12549,174.9,174.87,10.1315754]
[1730369957237,25.717,174.92,174.88,10.1315754]
[1730369957423,25.717,174.92,174.89,10.1315754]
[1730369957635,0.12549,174.91,174.89,10.1315754]
[1730369958438,0.12549,174.91,174.88,10.1315754]
[1730369958647,5.84269,174.91,174.88,10.1315754]
[1730369959026,10.1315754,174.9,174.86,15.8502754]
[1730369960041,15.9742654,174.91,174.86,15.8502754]
[1730369960225,5.84269,174.91,174.87,10.1315754]
[1730369961445,15.9742654,174.91,174.86,15.8502754]
[1730369965143,5.84269,174.91,174.87,10.1315754]
[1730369968354,15.9742654,174.91,174.86,15.8502754]
[1730369970345,15.9742654,174.91,174.87,10.1315754]
[1730369971152,15.9742654,174.91,174.86,15.8502754]
[1730369971453,15.9742654,174.91,174.87,10.1315754]
[1730369972670,15.9742654,174.91,174.86,15.8502754]
[1730369973157,15.9742654,174.91,174.87,10.1315754]
[1730369974253,10.1315754,174.89,174.85,14.2979]
[1730369974464,10.1315754,174.89,174.85,24.4294754]
[1730369974754,5.7172,174.91,174.87,10.1315754]
[1730369974954,15.8481754,174.93,174.88,10.1315754]
[1730369975140,15.8481754,174.93,174.89,10.1315754]
[1730369975336,5.7166,174.93,174.89,10.1315754]
[1730369975657,10.1315754,174.96,174.92,10.1315754]
[1730369976234,15.8471754,174.96,174.92,10.1315754]
[1730369977255,15.8471754,174.96,174.91,15.8485754]
[1730369980837,10.1315754,174.96,174.92,10.1315754]
[1730369981164,15.9722654,174.97,174.92,10.1315754]
[1730369981945,10.1315754,174.96,174.92,10.1315754]
[1730369982147,15.8471754,174.96,174.92,10.1315754]
[1730369984055,5.7156,174.96,174.92,10.1315754]
[1730369985345,10.1315754,174.98,174.93,10.1315754]
[1730369985533,15.8466754,174.98,174.93,10.1315754]
[1730369985734,15.8466754,174.98,174.93,15.8477754]
[1730369985944,15.8466754,174.98,174.93,30.1391754]
[1730369986243,5.7151,174.98,174.94,10.1315754]
[1730369987665,16.4231,175.02,174.94,10.1315754]
[1730369987666,15.8457754,175.0,174.95,10.1315754]
[1730369987960,0.12549,174.99,174.95,10.1315754]
[1730369988354,10.2570654,174.99,174.94,30.1382754]
[1730369988556,10.2570654,174.99,174.94,24.4221754]
[1730369989745,15.9718654,174.99,174.94,30.1383754]
[1730369990250,5.84029,174.99,174.95,10.1315754]
[1730369996553,5.84029,174.99,174.95,15.8472754]
[1730370000669,15.9718654,174.99,174.94,10.1315754]
[1730370000854,10.1315754,174.98,174.93,10.1315754]
[1730370001274,15.9718654,174.99,174.94,10.1315754]
[1730370002071,15.9718654,174.99,174.94,15.8476754]
[1730370004269,15.9718654,174.99,174.95,10.1315754]
[1730370004655,10.1315754,175.0,174.96,10.1315754]
[1730370004968,15.8454754,175.01,174.96,10.1315754]
[1730370005787,5.7139,175.01,174.97,10.1315754]
[1730370005958,15.8450754,175.03,174.98,10.1315754]
[1730370006282,15.8445754,175.04,174.99,10.1315754]
[1730370006666,10.2570654,175.03,174.98,30.1336754]
[1730370006968,10.1315754,175.01,174.98,14.2873]
[1730370007562,10.1315754,175.02,174.98,20.0022]
[1730370007971,10.2570654,175.03,174.98,30.1337754]
[1730370008267,15.9705654,175.03,174.98,30.1337754]
[1730370009976,10.1315754,175.04,174.99,10.1315754]
[1730370010279,15.8446754,175.04,174.99,10.1315754]
[1730370011077,10.1315754,175.03,174.98,10.1315754]
[1730370011262,10.1315754,175.03,174.32,0.35]
[1730370011263,10.1315754,175.0,174.95,10.1315754]
[1730370011579,10.1315754,174.99,174.95,10.1315754]
[1730370012277,10.1315754,174.99,174.94,10.1315754]
[1730370012463,10.1315754,174.98,174.94,10.1315754]
[1730370013570,10.1315754,174.98,174.94,15.8476754]
[1730370014272,15.8461754,174.99,174.94,15.8476754]
[1730370015185,15.8461754,174.99,174.95,10.1315754]
[1730370015562,15.8461754,174.99,174.94,10.1315754]
[1730370017181,15.8461754,174.99,174.94,15.8474754]
[1730370021867,10.1315754,174.97,174.93,10.1315754]
[1730370022963,10.1315754,174.97,174.94,5.7162]
[1730370025294,10.1315754,174.96,174.92,24.4237754]
[1730370025589,10.1315754,174.94,174.9,16.84086209]
[1730370025776,10.1315754,174.94,174.9,31.13466209]
[1730370025962,10.1315754,174.95,174.9,31.13466209]
[1730370027065,10.1315754,174.94,174.9,31.13466209]
[1730370028199,15.8479754,174.94,174.9,21.00308669]
[1730370028379,10.1315754,174.93,174.9,21.00308669]
[1730370028709,15.8479754,174.94,174.9,21.00308669]
[1730370030168,15.8479754,174.94,174.9,0.99208669]
[1730370030169,10.1315754,174.91,174.9,0.99208669]
[1730370030364,10.1315754,174.91,174.87,0.85748585]
[1730370030574,10.1315754,174.9,174.87,6.57598585]
[1730370030772,10.1315754,174.92,174.88,10.1315754]
[1730370031092,10.1315754,174.94,174.89,10.1315754]
[1730370031293,6.4696,174.96,174.91,10.1315754]
[1730370031294,10.1315754,174.96,174.91,10.1315754]
[1730370031469,10.1315754,174.98,174.93,10.1315754]
[1730370032277,15.8464754,174.98,174.93,15.8478754]
[1730370032976,10.1315754,174.97,174.93,5.7163]
[1730370033578,10.1315754,174.96,174.93,5.7163]
[1730370034599,10.1315754,174.96,174.92,20.0087]
[1730370034901,10.1315754,174.94,174.9,5.7174]
[1730370036003,10.1315754,174.94,174.9,10.1315754]
[1730370036586,15.9729654,174.95,174.9,10.1315754]
[1730370037203,10.1315754,174.94,174.9,15.8489754]
[1730370038007,10.1315754,174.94,174.89,24.4258754]
[1730370038717,15.8477754,174.94,174.89,24.4258754]
[1730370039505,10.1315754,174.91,174.87,16.70746125]
[1730370039978,15.8484754,174.92,174.87,16.70746125]
[1730370040784,5.7169,174.92,174.88,10.1315754]
[1730370042077,5.7169,174.92,174.88,15.8496754]
[1730370046116,5.7169,174.92,174.88,5.7181]
[1730370056809,5.7169,174.92,174.87,31.99528128]
[1730370057001,15.8484754,174.92,174.87,31.99528128]
[1730370057313,10.1315754,174.89,174.87,1.84900588]
[1730370057610,10.1315754,174.88,174.87,1.84900588]
[1730370057789,10.1315754,174.88,174.87,0.85748585]
[1730370058495,15.8497754,174.88,174.87,0.85748585]
[1730370058818,5.7182,174.88,174.87,0.85748585]
[1730370060704,15.8497754,174.88,174.87,0.85748585]
[1730370063001,10.1315754,174.88,174.87,0.85748585]
[1730370063820,35.9752654,174.88,174.82,7.29388332]
[1730370063998,10.1315754,174.84,174.82,1.57398332]
[1730370064327,10.2570654,174.87,174.83,10.1315754]